fUSD/lending_fUSD_20240220
["ID","MTS","AMOUNT","RATE_DAILY","PERIOD"]
[314628458,1708468246410,-160.21546893,0.00046476,30]
[314628459,1708468246427,-168.0,0.00046479,30]
[314628460,1708468246437,-2580.96587127,0.00046492,22]
[314628461,1708468246446,-1277.04,0.000465,7]
[314628462,1708468246455,-153.81175386,0.00046524,30]
[314628463,1708468246465,-160.21546893,0.00046537,30]
[314628464,1708468246474,-150.84470704,0.00046542,30]
[314628466,1708468246483,-153.63739611,0.00046544,30]
[314628467,1708468246492,-181.7075,0.00046575,2]
[314628468,1708468246501,-151.77391709,0.00046602,30]
[314628469,1708468246510,-200.0,0.00046619,20]
[314628470,1708468246519,-800.0,0.00046619,20]
[314628471,1708468246528,-200.0,0.00046619,30]
[314628472,1708468246538,-500.0,0.00046619,30]
[314628473,1708468246547,-200.0,0.00046619,30]
[314628474,1708468246556,-151.77391709,0.00046687,30]
[314628475,1708468246565,-156.44324321,0.00046694,30]
[314628476,1708468246575,-156.44324321,0.00046696,30]
[314628477,1708468246584,-151.77391709,0.00046698,30]
[314628478,1708468246594,-151.77391709,0.00046699,30]
[314628479,1708468246603,-2332.0,0.000467,115]
[314628480,1708468246612,-155.53607225,0.00046717,30]
[314628481,1708468246621,-156.44324321,0.0004673,30]
[314628482,1708468246630,-153.10923514,0.00046744,32]
[314628483,1708468246640,-168.52309474,0.00046752,30]
[314628484,1708468246649,-1500.0,0.00046756,7]
[314628485,1708468246659,-5000.0,0.00046771,4]
[314628486,1708468246668,-1002.5,0.000468,7]
[314628487,1708468246677,-158.8949895,0.00046806,30]
[314628488,1708468246686,-155.9870422,0.00046807,30]
[314628489,1708468246695,-157.56574082,0.00046812,30]
[314628491,1708468246704,-155.53607225,0.00046824,30]
[314628492,1708468246715,-151.77391709,0.00046825,30]
[314628493,1708468246728,-152.31080227,0.00046848,30]
[314628494,1708468246737,-152.31080229,0.00046875,30]
[314628495,1708468246745,-153.33001444,0.00046893,30]
[314628496,1708468246755,-157.56574082,0.00046895,30]
[314628497,1708468246765,-3382645.41682174,0.000469,4]
[314628498,1708468247135,-158561.90355177,0.000469,4]
[314628499,1708468247178,-49421.76253623,0.000469,4]
[314628500,1708468247202,-3632.45029156,0.000469,4]
[314628501,1708468247214,-1687.35,0.000469,4]
[314628502,1708468247758,-172.09,0.0003969,10]
[314628503,1708468247767,-843.0,0.00046105,2]
[314628504,1708468247776,-1978.1846,0.000469,4]
[314628505,1708468247806,-527.52759524,0.000469,4]
[314628506,1708468248929,-430.80500071,0.000469,4]
[314628507,1708468248941,-780.57986363,0.000469,4]
[314628508,1708468249033,-21266.45929016,0.000469,4]
[314628509,1708468249050,-3080.88621343,0.000469,4]
[314628510,1708468249063,-25534.66511755,0.000469,4]
[314628511,1708468439147,153.06,0.00027397,2]
[314628514,1708469062239,166.52,0.00027397,2]
[314628515,1708469144108,-155.0,0.00029822,2]
[314628516,1708469144126,-174.71,0.00029823,2]
[314628517,1708469144146,-602.216961,0.0003452,2]
[314628518,1708469144164,-150.0,0.00034548,10]
[314628519,1708469144182,-870.38393849,0.00034794,2]
[314628520,1708469144201,-903.325442,0.00034794,2]
[314628521,1708469144221,-1204.433923,0.00034931,2]
[314628522,1708469144239,-150.0,0.00034986,2]
[314628523,1708469144258,-165.0,0.00035,2]
[314628524,1708469144277,-1505.542404,0.00035068,2]
[314628525,1708469144297,-2107.759366,0.00035342,2]
[314628526,1708469144315,-155.0,0.00036508,4]
[314628527,1708469144474,-623.15,0.00036509,2]
[314628528,1708469144493,-150.0,0.00036509,3]
[314628529,1708469144512,-400.0,0.00036509,3]
[314628530,1708469144532,-687.59,0.0003651,2]
[314628531,1708469144551,-499.99,0.0003651,2]
[314628532,1708469144571,-2000.0,0.00037258,2]
[314628533,1708469144591,-250.0,0.00037404,2]
[314628534,1708469144610,-346.17,0.00037424,2]
[314628535,1708469144629,-318.97,0.00037612,2]
[314628536,1708469144648,-200.0,0.00037657,2]
[314628537,1708469144667,-153.06,0.00037671,2]
[314628538,1708469144687,-334.41,0.00037681,2]
[314628539,1708469144708,-318.97,0.00037715,2]
[314628540,1708469144728,-318.97,0.00037818,2]
[314628541,1708469144748,-318.97,0.00037921,2]
[314628542,1708469144767,-396.32847374,0.00037994,4]
[314628543,1708469144788,-17755.57344603,0.00037995,2]
[314628544,1708469207099,-319.25531896,0.00037804,4]
[314628545,1708469207121,-200.34560989,0.00037805,2]
[314628546,1708469207141,-175.99,0.000379,2]
[314628547,1708469207161,-252.54,0.000379,2]
[314628548,1708469207181,-250.0,0.00037911,2]
[314628549,1708469207199,-155.0,0.00037994,4]
[314628550,1708469207219,-984.32716799,0.00037995,2]
[314628551,1708469227099,-162.69376076,0.00037983,4]
[314628552,1708469227119,-500.0,0.00037984,2]
[314628553,1708469227140,-5160.09938598,0.00037995,2]
[314628554,1708469227161,-318.97,0.00038025,2]
[314628555,1708469227181,-186.47,0.00038102,2]
[314628556,1708469227202,-318.97,0.00038128,2]
[314628557,1708469227221,-499.99,0.00038231,2]
[314628558,1708469227243,-318.97,0.00038231,2]
[314628559,1708469227263,-413.8,0.00038238,2]
[314628560,1708469227281,-150.0,0.00038249,2]
[314628561,1708469227300,-178.55,0.00038319,2]
[314628562,1708469227320,-318.97,0.00038334,2]
[314628563,1708469227339,-150.91,0.00038356,2]
[314628564,1708469227360,-901.88466873,0.00038356,15]
[314628565,1708469290371,750.0,0.00025,3]
[314628566,1708469291994,800.0,0.00027,3]
[314628571,1708469358253,-850.0,0.00029,3]
[314628572,1708469363278,248.7618202,0.00028999,2]
[314628582,1708469432213,-162.69376076,0.00034519,4]
[314628583,1708469432224,-4931.265731,0.0003452,2]
[314628584,1708469432233,-478.24006372,0.0003458,4]
[314628585,1708469432242,-7396.898596,0.00034794,2]
[314628586,1708469432252,-9862.531462,0.00034931,2]
[314628587,1708469432262,-12328.164327,0.00035068,2]
[314628588,1708469432271,-1052.21797984,0.00035341,2]
[314628589,1708469432280,-17259.430058,0.00035342,2]
[314628590,1708469432290,-300.0,0.00036335,2]
[314628591,1708469432299,-653.21,0.00036435,2]
[314628592,1708469432308,-212.7581,0.00037821,2]
[314628593,1708469432319,-18794.95,0.00037899,2]
[314628594,1708469432329,-344.83,0.00038277,2]
[314628595,1708469432338,-155.0,0.00038279,4]
[314628596,1708469432347,-283.96,0.0003828,2]
[314628597,1708469432357,-401.0,0.00038318,2]
[314628598,1708469432367,-124.65533127,0.00038356,15]
[314628599,1708469432376,-150.91,0.00038356,2]
[314628600,1708469432387,-318.97,0.00038437,2]
[314628601,1708469432396,-167.41,0.00038481,2]
[314628602,1708469432404,-318.97,0.0003854,2]
[314628603,1708469432413,-158.06,0.00038552,2]
[314628604,1708469432423,-375.56,0.00038552,2]
[314628605,1708469432432,-318.97,0.00038643,2]
[314628606,1708469432441,-166.34382078,0.00038647,2]
[314628607,1708469432450,-653.21,0.00038699,2]
[314628608,1708469432460,-318.97,0.00038747,2]
[314628609,1708469432469,-158.06,0.00038809,2]
[314628610,1708469432480,-318.97,0.0003885,2]
[314628611,1708469432489,-2315.0,0.000389,3]
[314628612,1708469432499,-318.97,0.00038953,2]
[314628613,1708469432508,-318.97,0.00039056,2]
[314628614,1708469432518,-158.06,0.00039066,2]
[314628615,1708469432527,-318.97,0.00039159,2]
[314628616,1708469432537,-166.34,0.00039199,2]
[314628617,1708469432546,-318.97,0.00039262,2]
[314628618,1708469432556,-158.06,0.00039323,2]
[314628620,1708469432566,-318.97,0.00039365,2]
[314628622,1708469432575,-150.0,0.00039399,5]
[314628624,1708469432585,-300.0,0.00039399,5]
[314628626,1708469432594,-300.0,0.00039399,5]
[314628627,1708469432603,-2511.10715094,0.000394,2]
[314628628,1708469432613,-2052.59522071,0.000394,9]
[314628629,1708469432622,-164.11438122,0.000394,2]
[314628630,1708469432632,-318.97,0.00039469,2]
[314628631,1708469432642,-826.48132194,0.00039498,4]
[314628632,1708469432652,-319.25531896,0.00039499,4]
[314628633,1708469432662,-1000.0,0.000395,2]
[314628634,1708469432671,-1866.58391157,0.000395,2]
[314628635,1708469432681,-207.4007,0.000395,2]
[314628636,1708469432690,-10582.36373075,0.000395,2]
[314628637,1708469432773,-84638.53941823,0.000395,2]
[314628638,1708469432837,-1427.83538133,0.000395,2]
[314628639,1708469432860,-351.48000001,0.000395,2]
[314628640,1708469432879,-1002.12804557,0.000395,2]
[314628641,1708469432987,-2413.17240385,0.000395,2]
[314628642,1708469432999,-556.17664511,0.000395,2]
[314628643,1708469433027,-85334.17270575,0.000395,2]
[314628644,1708469433038,-38149.69831125,0.000395,2]
[314628645,1708469433050,-629.84294458,0.000395,2]
[314628646,1708469433061,-5220.1302,0.000395,2]
[314628652,1708469438379,-131650.40931357,0.000395,2]
[314628653,1708469438389,-5893.936,0.000395,2]
[314628654,1708469438398,-624.44,0.00039511,2]
[314628655,1708469438408,-318.97,0.00039572,2]
[314628656,1708469438418,-158.06,0.0003958,2]
[314628657,1708469438428,-5094.05466202,0.00039599,2]
[314628658,1708469438437,-1000.0,0.00039599,2]
[314628659,1708469438446,-53270.536,0.000396,2]
[314628661,1708469438455,-1000.0,0.000396,2]
[314628662,1708469438464,-61117.0204,0.000396,2]
[314628663,1708469438474,-199.7533571,0.00039637,2]
[314628664,1708469438483,-283.96,0.00039696,2]
[314628665,1708469438492,-2331.10939062,0.00039697,2]
[314628666,1708469438500,-519.44372,0.00039698,2]
[314628667,1708469438509,-37789.31924328,0.000397,10]
[314628668,1708469438529,-113791.68399461,0.000397,10]
[314628669,1708469438540,-7529.88365692,0.000397,10]
[314628670,1708469438560,-125005.97104328,0.000397,10]
[314628671,1708469438569,-542.44322807,0.00039737,2]
[314628672,1708469438578,-158.06,0.00039837,2]
[314628673,1708469438588,-344.83,0.0003992,2]
[314628674,1708469438597,-165.0,0.0004,2]
[314628675,1708469438606,-695.8647986,0.00040053,12]
[314628676,1708469438615,-158.06,0.00040094,2]
[314628677,1708469438624,-158.06,0.00040351,2]
[314628678,1708469438633,-158.06,0.00040608,2]
[314628679,1708469438642,-1000.0,0.00040799,2]
[314628680,1708469438651,-377.49,0.000408,4]
[314628681,1708469438660,-377.49,0.000408,4]
[314628682,1708469438669,-377.49,0.000408,4]
[314628683,1708469438678,-377.49,0.000408,4]
[314628684,1708469438688,-377.49,0.000408,4]
[314628685,1708469438697,-377.49,0.000408,4]
[314628686,1708469438706,-377.49,0.000408,4]
[314628687,1708469438715,-377.49,0.000408,4]
[314628688,1708469438724,-377.49,0.000408,4]
[314628689,1708469438733,-377.49,0.000408,4]
[314628690,1708469438742,-377.49,0.000408,4]
[314628691,1708469438751,-377.49,0.000408,4]
[314628692,1708469438761,-377.49,0.000408,4]
[314628693,1708469438770,-377.49,0.000408,4]
[314628694,1708469438779,-377.49,0.000408,4]
[314628695,1708469438788,-377.49,0.000408,4]
[314628696,1708469438798,-377.49,0.000408,4]
[314628697,1708469438806,-377.49,0.000408,4]
[314628698,1708469438815,-377.49,0.000408,4]
[314628699,1708469438824,-377.49,0.000408,4]
[314628700,1708469438833,-154.18,0.000408,4]
[314628701,1708469438842,-158.06,0.00040865,2]
[314628702,1708469438851,-2052.5952207,0.00040886,10]
[314628703,1708469438861,-150.0,0.00040892,2]
[314628704,1708469438871,-300.0,0.00040892,7]
[314628705,1708469438880,-1000.0,0.00040959,7]
[314628706,1708469438889,-1000.0,0.00040959,7]
[314628707,1708469438898,-1000.0,0.00040959,7]
[314628708,1708469438907,-1000.0,0.00040959,7]
[314628709,1708469438916,-1000.0,0.00040959,7]
[314628710,1708469438925,-1000.0,0.00040959,7]
[314628711,1708469438934,-1000.0,0.00040959,7]
[314628712,1708469438944,-1000.0,0.00040959,7]
[314628713,1708469438954,-1000.0,0.00040959,7]
[314628714,1708469439101,-653.21,0.00040963,2]
[314628715,1708469439111,-237.29,0.00041,2]
[314628716,1708469439123,-9920.41926112,0.00041017,10]
[314628717,1708469439733,-5713.26001431,0.00041017,10]
[314628718,1708469439752,-1093.63044907,0.00041017,10]
[314628719,1708469439761,-2034.13917323,0.00041017,6]
[314628725,1708469440782,-15653.8948,0.00041017,6]
[314628726,1708469440794,-15808.90122499,0.00041017,6]
[314628727,1708469440839,-489.47653646,0.00041017,6]
[314628728,1708469440851,-515.56383828,0.00041017,6]
[314628729,1708469440901,-290.25526591,0.00041017,6]
[314628730,1708469441559,-2358.50063164,0.00041017,6]
[314628731,1708469441573,-1689.95371135,0.00041017,6]
[314628732,1708469441584,-387.72733961,0.00041017,6]
[314628733,1708469441595,-1189.05600737,0.00041017,6]
[314628734,1708469441707,-40053.22568086,0.00041017,6]
[314628741,1708469441860,-1727.00171,0.00041053,30]
[314628742,1708469441870,-1281.89573,0.00041053,2]
[314628743,1708469441878,-1842.717286,0.00041053,30]
[314628744,1708469441887,-1866.58391157,0.00041079,5]
[314628745,1708469441896,-283.96,0.00041112,2]
[314628746,1708469441905,-158.06,0.00041122,2]
[314628747,1708469441914,-401.0,0.00041188,2]
[314628748,1708469441923,-1000.0,0.000412,5]
[314628749,1708469441933,-166.19,0.00041282,2]
[314628750,1708469441943,-153.27863645,0.00041329,11]
[314628751,1708469441952,-158.06,0.00041379,2]
[314628752,1708469441961,-18147.21639645,0.00041429,20]
[314628753,1708469441970,-3427.4343679,0.00041429,12]
[314628754,1708469441982,-912.31412449,0.00041429,12]
[314628755,1708469441995,-617.4186766,0.00041429,12]
[314628756,1708469442005,-2214.33929312,0.00041429,20]
[314628757,1708469442017,-21453.58425282,0.00041429,20]
[314628758,1708469442027,-151.022121,0.00041448,36]
[314628759,1708469442036,-199.75335707,0.00041551,2]
[314628760,1708469442045,-344.83,0.00041564,2]
[314628761,1708469442054,-180.77,0.00041613,2]
[314628762,1708469442063,-158.06,0.00041636,2]
[314628763,1708469442072,-151.022121,0.00041748,36]
[314628764,1708469442082,-154.38,0.00041775,2]
[314628765,1708469442095,-2543.11829515,0.00041863,16]
[314628766,1708469442104,-158.06,0.00041893,2]
[314628767,1708469442114,-2511.10715092,0.00041956,4]
[314628768,1708469442123,-232.37286932,0.00042092,15]
[314628769,1708469442136,-794.16713068,0.00042092,15]
[314628770,1708469442145,-151.022121,0.00042148,40]
[314628771,1708469442155,-98.47520668,0.0004215,2]
[314628772,1708469442168,-59.58479332,0.0004215,2]
[314628773,1708469442178,-153.27863641,0.00042214,15]
[314628774,1708469442188,-167.41,0.00042329,2]
[314628775,1708469442197,-2052.5952207,0.00042371,10]
[314628776,1708469442206,-152.0,0.00042404,3]
[314628777,1708469442216,-158.06,0.00042407,2]
[314628778,1708469442225,-167.2,0.00042425,2]
[314628779,1708469442236,-151.022121,0.00042448,40]
[314628780,1708469442245,-283.96,0.00042529,2]
[314628781,1708469442256,-1571.10626158,0.00042585,17]
[314628782,1708469442268,-972.01203357,0.00042585,17]
[314628783,1708469442277,-1866.58391157,0.00042658,5]
[314628784,1708469442287,-377.49,0.00043,4]
[314628785,1708469442296,-377.49,0.00043,4]
[314628786,1708469442305,-377.49,0.00043,4]
[314628787,1708469442316,-377.49,0.00043,4]
[314628788,1708469442325,-377.49,0.00043,4]
[314628789,1708469442335,-377.49,0.00043,4]
[314628790,1708469442344,-377.49,0.00043,4]
[314628791,1708469442353,-377.49,0.00043,4]
[314628792,1708469442363,-377.49,0.00043,4]
[314628793,1708469442374,-377.49,0.00043,4]
[314628794,1708469442384,-377.49,0.00043,4]
[314628795,1708469442394,-377.49,0.00043,4]
[314628796,1708469442404,-377.49,0.00043,4]
[314628797,1708469442413,-377.49,0.00043,4]
[314628798,1708469442423,-377.49,0.00043,4]
[314628799,1708469442432,-377.49,0.00043,4]
[314628800,1708469442442,-377.49,0.00043,4]
[314628801,1708469442451,-377.49,0.00043,4]
[314628802,1708469442461,-377.49,0.00043,4]
[314628803,1708469442470,-377.49,0.00043,4]
[314628804,1708469442479,-154.18,0.00043,4]
[314628805,1708469442488,-154.18,0.00043,4]
[314628806,1708469442498,-4000.0,0.00043,2]
[314628807,1708469442507,-153.27863641,0.00043099,18]
[314628808,1708469442516,-157.022121,0.00043148,41]
[314628809,1708469442525,-344.83,0.00043208,2]
[314628810,1708469442534,-653.21,0.00043227,2]
[314628811,1708469442544,-2511.10715092,0.00043233,5]
[314628812,1708469442553,-154.0,0.00043292,7]
[314628813,1708469442562,-2543.11829515,0.00043306,18]
[314628814,1708469442571,-375.56,0.00043371,2]
[314628815,1708469442580,-151.022121,0.00043448,41]
[314628816,1708469442590,-199.75335707,0.00043466,2]
[314628817,1708469442599,-2000.0,0.000436,2]
[314628818,1708469442608,-655.7467,0.00043714,120]
[314628819,1708469442617,-300.0,0.00043782,2]
[314628820,1708469442626,-2000.0,0.000438,2]
[314628821,1708469442635,-157.57,0.00043814,2]
[314628822,1708469442645,-800.0,0.00043835,2]
[314628823,1708469442654,-154.0,0.0004384,7]
[314628824,1708469442663,-2052.5952207,0.00043857,11]
[314628825,1708469442672,-283.96,0.00043945,2]
[314628826,1708469442682,-153.27863641,0.00043984,21]
[314628827,1708469442691,-2543.11829515,0.00044028,19]
[314628828,1708469442701,-401.0,0.00044059,2]
[314628829,1708469442711,-300.0,0.00044135,2]
[314628830,1708469442720,-1866.58391157,0.00044237,5]
[314628831,1708469442729,-1162.32,0.00044319,2]
[314628832,1708469442738,-154.0,0.00044388,7]
[314628833,1708469442746,-151.022121,0.00044448,42]
[314628834,1708469442755,-624.44,0.0004445,2]
[314628835,1708469442764,-2511.10715092,0.00044511,6]
[314628836,1708469442773,-800.0,0.00044657,2]
[314628837,1708469442782,-500.0,0.00044672,4]
[314628838,1708469442791,-500.0,0.00044681,4]
[314628839,1708469442800,-500.0,0.0004469,4]
[314628840,1708469442808,-500.0,0.00044699,4]
[314628841,1708469442817,-500.0,0.00044708,4]
[314628842,1708469442826,-500.0,0.00044716,4]
[314628843,1708469442835,-500.0,0.00044725,4]
[314628844,1708469442844,-500.0,0.00044734,4]
[314628845,1708469442853,-500.0,0.00044743,4]
[314628846,1708469442862,-2543.11829515,0.00044749,19]
[314628847,1708469442872,-500.0,0.00044752,4]
[314628848,1708469442882,-344.83,0.00044852,2]
[314628849,1708469442891,-153.27863641,0.00044869,25]
[314628850,1708469442900,-300.0,0.00044925,2]
[314628851,1708469442909,-154.0,0.00044936,7]
[314628852,1708469442918,-152.0,0.00045006,4]
[314628853,1708469442927,-265.82540254,0.00045063,4]
[314628854,1708469442938,-451.09349236,0.00045063,4]
[314628855,1708469442948,-268.81902629,0.00045063,4]
[314628856,1708469442956,-513.44095132,0.00045063,5]
[314628857,1708469442966,-256.72047566,0.00045076,4]
[314628858,1708469442975,-449.75059339,0.00045089,5]
[314628859,1708469442984,-153.67587309,0.00045116,4]
[314628860,1708469442994,-401.81727315,0.0004513,5]
[314628862,1708469443002,-151.28786855,0.0004513,5]
[314628864,1708469443011,-2436.09981581,0.0004513,7]
[314628865,1708469443020,-393.08021326,0.0004513,5]
[314628867,1708469443029,-1931.6,0.0004516,2]
[314628869,1708469443039,-377.49,0.000452,5]
[314628871,1708469443048,-377.49,0.000452,5]
[314628872,1708469443057,-377.49,0.000452,5]
[314628874,1708469443067,-377.49,0.000452,5]
[314628876,1708469443077,-377.49,0.000452,5]
[314628877,1708469443089,-377.49,0.000452,5]
[314628878,1708469443098,-377.49,0.000452,5]
[314628879,1708469443108,-165.54633827,0.000452,5]
[314628880,1708469443123,-211.94366173,0.000452,5]
[314628881,1708469443133,-377.49,0.000452,5]
[314628882,1708469443142,-377.49,0.000452,5]
[314628883,1708469443152,-377.49,0.000452,5]
[314628884,1708469443161,-377.49,0.000452,5]
[314628885,1708469443171,-377.49,0.000452,5]
[314628886,1708469443181,-377.49,0.000452,5]
[314628887,1708469443190,-377.49,0.000452,5]
[314628888,1708469443199,-342.17158003,0.000452,5]
[314628908,1708469444786,-1629.74862621,0.000395,2]
[314628910,1708469444796,-1447.91965239,0.00042425,2]
[314628911,1708469444807,-1230.53034761,0.00042425,2]
[314628912,1708469444817,-24304.13476994,0.0004516,120]
[314628913,1708469444839,-56581.15179038,0.0004516,120]
[314628914,1708469444848,-35.31841997,0.000452,5]
[314628915,1708469444858,-377.49,0.000452,5]
[314628916,1708469444868,-377.49,0.000452,5]
[314628917,1708469444878,-377.49,0.000452,5]
[314628918,1708469444887,-377.49,0.000452,5]
[314628919,1708469444897,-154.18,0.000452,5]
[314628920,1708469444906,-154.18,0.000452,5]
[314628921,1708469444916,-4092.09954856,0.00045263,10]
[314628922,1708469444928,-589.19416,0.00045263,10]
[314628923,1708469444939,-11459.83011159,0.00045263,10]
[314628924,1708469444956,-4237.25351497,0.00045263,10]
[314628925,1708469444967,-1226.64198062,0.00045263,10]
[314628926,1708469444978,-6007.87550235,0.00045263,10]
[314628927,1708469444989,-5391.69840739,0.00045263,10]
[314628928,1708469445001,-2980.73999347,0.00045263,10]
[314628933,1708469445300,-807.30792936,0.00045263,10]
[314628934,1708469445312,-43678.05306139,0.00045263,10]
[314628935,1708469445324,-2692.0,0.00045273,2]
[314628936,1708469445334,-1371.0,0.00045273,2]
[314628937,1708469445343,-1867.0,0.00045273,2]
[314628938,1708469445353,-709.0,0.00045273,2]
[314628939,1708469445364,-843.0,0.00045273,2]
[314628940,1708469445374,-454.0,0.00045273,2]
[314628941,1708469445383,-245.052,0.00045273,2]
[314628942,1708469445393,-954.0,0.00045273,2]
[314628943,1708469445402,-1256.0,0.00045273,2]
[314628944,1708469445411,-217.339,0.00045273,2]
[314628945,1708469445421,-1231.0,0.00045273,2]
[314628946,1708469445431,-600.0,0.00045273,2]
[314628947,1708469445440,-1951.0,0.00045273,2]
[314628948,1708469445449,-430.137,0.00045273,2]
[314628949,1708469445458,-277.855,0.00045273,2]
[314628950,1708469445468,-862.269,0.00045273,2]
[314628951,1708469445477,-1008.937,0.00045273,2]
[314628952,1708469445486,-248.776,0.00045273,2]
[314628953,1708469445495,-324.585,0.00045273,2]
[314628954,1708469445505,-1138.0,0.00045273,2]
[314628955,1708469445514,-355.0,0.00045273,2]
[314628956,1708469445524,-2888.0,0.00045273,2]
[314628957,1708469445533,-389.0,0.00045273,2]
[314628958,1708469445542,-150.173,0.00045273,2]
[314628959,1708469445551,-454.0,0.00045273,2]
[314628960,1708469445560,-2420.133,0.00045273,2]
[314628961,1708469445570,-231.693,0.00045273,2]
[314628962,1708469445580,-1479.539,0.00045273,2]
[314628963,1708469445589,-809.365,0.00045273,2]
[314628964,1708469445598,-573.49664196,0.00045273,2]
[314628965,1708469445610,-1020.35374938,0.00045273,2]
[314628968,1708469446193,-185.93572658,0.00041016,4]
[314628969,1708469446203,-357.72,0.00045252,10]
[314628970,1708469446213,-698.14960866,0.00045273,2]
[314628971,1708469446222,-158.0,0.00045273,2]
[314628972,1708469446231,-158.922,0.00045273,2]
[314628973,1708469446240,-4103.0,0.00045273,2]
[314628974,1708469446249,-202.0,0.00045273,2]
[314628975,1708469446258,-235.769,0.00045273,2]
[314628976,1708469446267,-155.0,0.00045273,2]
[314628977,1708469446276,-8174.0,0.00045273,2]
[314628978,1708469446285,-2931.0,0.00045273,2]
[314628979,1708469446294,-250.0,0.00045273,2]
[314628980,1708469446302,-200.0,0.00045273,2]
[314628981,1708469446311,-1038.0,0.00045273,2]
[314628982,1708469446322,-153.0,0.00045273,2]
[314628983,1708469446331,-208.036,0.00045273,2]
[314628984,1708469446341,-248.28,0.00045273,2]
[314628985,1708469446350,-152.972,0.00045273,2]
[314628986,1708469446359,-152.723,0.00045273,2]
[314628987,1708469446368,-156.12,0.00045273,2]
[314628988,1708469446379,-226.666,0.00045273,2]
[314628989,1708469446387,-184.296,0.00045273,2]
[314628990,1708469446397,-157.57,0.00045274,2]
[314628991,1708469446406,-2052.5952207,0.00045343,12]
[314628992,1708469446415,-213.0,0.00045369,10]
[314628993,1708469446425,-199.75335707,0.0004538,2]
[314628994,1708469446435,-151.022121,0.00045448,43]
[314628995,1708469446444,-2543.11829515,0.00045471,20]
[314628996,1708469446453,-800.0,0.00045479,2]
[314628997,1708469446463,-154.0,0.00045484,30]
[314628998,1708469446472,-653.21,0.00045491,2]
[314628999,1708469446482,-200.0,0.00045727,10]
[314629001,1708469446491,-153.27863641,0.00045754,28]
[314629004,1708469446501,-2511.10715092,0.00045789,7]
[314629005,1708469446510,-1690.122328,0.000458,120]
[314629006,1708469446518,-1.87641112,0.000458,120]
[314629009,1708469446621,-2790.0,0.000458,120]
[314629011,1708469446634,-1709.09941788,0.000458,120]
[314629012,1708469446644,-1866.58391157,0.00045816,5]
[314629013,1708469446654,-1447.5172048,0.0004582,2]
[314629014,1708469446664,-1026.54,0.00045828,15]
[314629015,1708469446674,-1342.0,0.000459,4]
[314629016,1708469446685,-150.0,0.000459,65]
[314629017,1708469446695,-619.00250805,0.00046,21]
[314629018,1708469446706,-4358.20007664,0.00046,21]
[314629019,1708469446719,-1239.57551733,0.00046,21]
[314629020,1708469446761,-2568.22189798,0.00046,21]
[314629021,1708469446770,-2000.0,0.00046,30]
[314629022,1708469446779,-3817.0168,0.00046016,7]
[314629023,1708469446789,-154.0,0.00046032,30]
[314629024,1708469446798,-160.21546893,0.00046085,30]
[314629025,1708469446806,-164.60494974,0.00046109,30]
[314629026,1708469446815,-3000.0,0.0004611,31]
[314629027,1708469446824,-1141.74525294,0.00046116,60]
[314629028,1708469446833,-250.0,0.00046116,7]
[314629029,1708469446965,-1447.5172048,0.00046123,2]
[314629030,1708469446975,-150.84470704,0.00046134,30]
[314629031,1708469446986,-1346.83153727,0.00046136,2]
[314629032,1708469446996,-163.17815453,0.00046161,30]
[314629033,1708469447007,-151.00050162,0.00046163,30]
[314629034,1708469447018,-150.84470704,0.00046165,30]